[Event "*** Titled Tuesday Blitz"]
[Site "Chess.com"]
[Date "2020.05.05"]
[Round "3"]
[White "CyberneticLion"]
[Black "Aleksandar-Topalov"]
[Result "1-0"]
[WhiteElo "2610"]
[BlackElo "2391"]
[TimeControl "180+1"]
[EndTime "10:30:16 PDT"]
[Termination "CyberneticLion won by resignation"]

1. d4 {[%clk 0:03:00.9]} 1... Nf6 {[%clk 0:02:59.6]} 2. Bf4 {[%clk 0:02:54.5]}
2... g6 {[%clk 0:02:59]} 3. Nc3 {[%clk 0:02:52.6]} 3... d5 {[%clk 0:02:57.7]} 4.
e3 {[%clk 0:02:52.2]} 4... Bg7 {[%clk 0:02:57.2]} 5. h4 {[%clk 0:02:52]} 5... h6
{[%clk 0:02:56.7]} 6. Nf3 {[%clk 0:02:49.6]} 6... O-O {[%clk 0:02:56.4]} 7. Qd2
{[%clk 0:02:48.7]} 7... c6 {[%clk 0:02:54]} 8. O-O-O {[%clk 0:02:48.3]} 8... Qa5
{[%clk 0:02:51.1]} 9. Kb1 {[%clk 0:02:47.5]} 9... Nbd7 {[%clk 0:02:49.4]} 10.
Ne5 {[%clk 0:02:45]} 10... Nxe5 {[%clk 0:02:36.2]} 11. Bxe5 {[%clk 0:02:36.1]}
11... Bf5 {[%clk 0:02:26.3]} 12. f3 {[%clk 0:02:33.9]} 12... h5 {[%clk
0:02:26.2]} 13. Be2 {[%clk 0:02:29.8]} 13... c5 {[%clk 0:02:11]} 14. Nxd5 {[%clk
0:02:27.1]} 14... Qd8 {[%clk 0:02:04.7]} 15. Nc7 {[%clk 0:02:07.3]} 15... Rc8
{[%clk 0:01:54.2]} 16. dxc5 {[%clk 0:02:07.7]} 16... Nd7 {[%clk 0:01:46.2]} 17.
Bxg7 {[%clk 0:02:03.8]} 17... Kxg7 {[%clk 0:01:46.5]} 18. Qc3+ {[%clk
0:02:01.1]} 18... Kg8 {[%clk 0:01:45.6]} 19. Nb5 {[%clk 0:01:58.7]} 19... Rxc5
{[%clk 0:01:36.7]} 20. Qxc5 {[%clk 0:01:58.3]} 20... Nxc5 {[%clk 0:01:36.3]} 21.
Rxd8 {[%clk 0:01:59.2]} 21... Rxd8 {[%clk 0:01:36.6]} 22. Nd4 {[%clk 0:01:59.9]}
22... Bc8 {[%clk 0:01:33.3]} 23. Rd1 {[%clk 0:01:58.3]} 23... a6 {[%clk
0:01:25.9]} 24. Nb3 {[%clk 0:01:53.3]} 24... Rxd1+ {[%clk 0:01:25.4]} 25. Bxd1
{[%clk 0:01:54.2]} 25... Nd7 {[%clk 0:01:22]} 26. c4 {[%clk 0:01:45.5]} 26... b6
{[%clk 0:01:21.8]} 27. Kc2 {[%clk 0:01:45.4]} 27... Bb7 {[%clk 0:01:21.8]} 28.
Kc3 {[%clk 0:01:44.3]} 28... e5 {[%clk 0:01:22]} 29. Nd2 {[%clk 0:01:39.5]}
29... f5 {[%clk 0:01:20]} 30. g3 {[%clk 0:01:36.5]} 30... Kf7 {[%clk 0:01:19.6]}
31. f4 {[%clk 0:01:36]} 31... Ke6 {[%clk 0:01:17.8]} 32. Nf3 {[%clk 0:01:32.1]}
32... Kd6 {[%clk 0:01:07.1]} 33. b4 {[%clk 0:01:28.9]} 33... a5 {[%clk
0:00:58.2]} 34. a3 {[%clk 0:01:27.8]} 34... Bc6 {[%clk 0:00:52.7]} 35. fxe5+
{[%clk 0:01:17.6]} 35... Nxe5 {[%clk 0:00:52.1]} 36. c5+ {[%clk 0:01:13]} 36...
bxc5 {[%clk 0:00:52.2]} 37. bxc5+ {[%clk 0:01:13.9]} 37... Ke6 {[%clk
0:00:52.6]} 38. Bb3+ {[%clk 0:01:03.6]} 38... Kf6 {[%clk 0:00:51.4]} 39. Nd4
{[%clk 0:01:00.2]} 39... Be4 {[%clk 0:00:46.8]} 40. Ba4 {[%clk 0:00:57]} 40...
Ng4 {[%clk 0:00:44.8]} 41. c6 {[%clk 0:00:55.3]} 41... Bxc6 {[%clk 0:00:33.3]}
42. Nxc6 {[%clk 0:00:39]} 42... Nxe3 {[%clk 0:00:33.5]} 43. Nxa5 {[%clk
0:00:39.5]} 43... Nf1 {[%clk 0:00:33.1]} 44. Bc6 {[%clk 0:00:34.1]} 44... Nxg3
{[%clk 0:00:33]} 45. Nb7 {[%clk 0:00:30]} 45... Ne2+ {[%clk 0:00:29.8]} 46. Kd3
{[%clk 0:00:24.5]} 46... Nf4+ {[%clk 0:00:28.3]} 47. Kc4 {[%clk 0:00:22.1]}
47... Ne6 {[%clk 0:00:22.9]} 48. a4 {[%clk 0:00:21.7]} 48... g5 {[%clk
0:00:20.1]} 49. Nc5 {[%clk 0:00:15.3]} 49... Nc7 {[%clk 0:00:19.4]} 50. hxg5+
{[%clk 0:00:12.8]} 50... Kxg5 {[%clk 0:00:19.8]} 51. Kd4 {[%clk 0:00:11.9]}
51... h4 {[%clk 0:00:20.1]} 52. Ke5 {[%clk 0:00:12]} 52... h3 {[%clk 0:00:13.8]}
53. Kd6 {[%clk 0:00:09.4]} 1-0

[Event "*** Titled Tuesday Blitz"]
[Site "Chess.com"]
[Date "2020.05.05"]
[Round "3"]
[White "CMS13"]
[Black "ninullia"]
[Result "0-1"]
[WhiteElo "2165"]
[BlackElo "2427"]
[TimeControl "180+1"]
[EndTime "10:30:16 PDT"]
[Termination "ninullia won by checkmate"]

1. e4 {[%clk 0:03:00.9]} 1... e5 {[%clk 0:03:00]} 2. Bc4 {[%clk 0:03:00.5]} 2...
Nc6 {[%clk 0:02:59.2]} 3. Nc3 {[%clk 0:02:59.9]} 3... Nf6 {[%clk 0:02:57.5]} 4.
d3 {[%clk 0:03:00.2]} 4... Be7 {[%clk 0:02:56.2]} 5. f4 {[%clk 0:02:59.8]} 5...
O-O {[%clk 0:02:53.3]} 6. Nf3 {[%clk 0:02:59.9]} 6... d6 {[%clk 0:02:49.4]} 7.
O-O {[%clk 0:03:00]} 7... Bg4 {[%clk 0:02:46.2]} 8. h3 {[%clk 0:02:59.7]} 8...
Bxf3 {[%clk 0:02:40.9]} 9. Qxf3 {[%clk 0:03:00.6]} 9... Na5 {[%clk 0:02:41.1]}
10. Bb3 {[%clk 0:03:00.3]} 10... Nxb3 {[%clk 0:02:40]} 11. axb3 {[%clk
0:03:01.1]} 11... exf4 {[%clk 0:02:38.5]} 12. Bxf4 {[%clk 0:03:00.7]} 12... c6
{[%clk 0:02:38.1]} 13. Kh1 {[%clk 0:02:38.3]} 13... Kh8 {[%clk 0:02:34]} 14. Ne2
{[%clk 0:02:27.3]} 14... d5 {[%clk 0:02:16.4]} 15. e5 {[%clk 0:02:26.3]} 15...
Ne8 {[%clk 0:02:16.2]} 16. Nd4 {[%clk 0:02:19.3]} 16... Qd7 {[%clk 0:02:13.3]}
17. Qg3 {[%clk 0:02:13.9]} 17... Nc7 {[%clk 0:02:02.4]} 18. Be3 {[%clk 0:01:43]}
18... Ne6 {[%clk 0:01:31.4]} 19. Nf5 {[%clk 0:01:42.4]} 19... a6 {[%clk
0:01:30.2]} 20. h4 {[%clk 0:01:28.5]} 20... Rg8 {[%clk 0:01:08.1]} 21. h5 {[%clk
0:01:15.9]} 21... d4 {[%clk 0:01:06.3]} 22. Bd2 {[%clk 0:01:12.2]} 22... h6
{[%clk 0:00:57.3]} 23. Rf3 {[%clk 0:00:44]} 23... Bg5 {[%clk 0:00:53.2]} 24.
Bxg5 {[%clk 0:00:38.6]} 24... Nxg5 {[%clk 0:00:52.8]} 25. Rf4 {[%clk 0:00:37.9]}
25... c5 {[%clk 0:00:50.2]} 26. Raf1 {[%clk 0:00:36.3]} 26... Rae8 {[%clk
0:00:45.7]} 27. Nd6 {[%clk 0:00:31.3]} 27... Rxe5 {[%clk 0:00:22.1]} 28. Nxf7+
{[%clk 0:00:22.5]} 28... Nxf7 {[%clk 0:00:21.9]} 29. Rxf7 {[%clk 0:00:23.4]}
29... Rxh5+ {[%clk 0:00:22.6]} 30. Kg1 {[%clk 0:00:22.9]} 30... Qe6 {[%clk
0:00:20.9]} 31. Rf8 {[%clk 0:00:21.2]} 31... Rxf8 {[%clk 0:00:12.9]} 32. Rxf8+
{[%clk 0:00:20.7]} 32... Kh7 {[%clk 0:00:13.8]} 33. Rf1 {[%clk 0:00:19.8]} 33...
Rg5 {[%clk 0:00:13]} 34. Qf3 {[%clk 0:00:19.8]} 34... b6 {[%clk 0:00:10.5]} 35.
Qe4+ {[%clk 0:00:19.4]} 35... Qxe4 {[%clk 0:00:10.6]} 36. dxe4 {[%clk
0:00:20.3]} 36... Rg3 {[%clk 0:00:10.7]} 37. Re1 {[%clk 0:00:20.4]} 37... Kg6
{[%clk 0:00:10.3]} 38. Kf2 {[%clk 0:00:20.6]} 38... Rg5 {[%clk 0:00:09.9]} 39.
e5 {[%clk 0:00:21.1]} 39... Kf7 {[%clk 0:00:09.8]} 40. Kf3 {[%clk 0:00:20.1]}
40... Ke6 {[%clk 0:00:10.1]} 41. g4 {[%clk 0:00:18.4]} 41... Rxe5 {[%clk
0:00:09.5]} 42. Ra1 {[%clk 0:00:16.8]} 42... a5 {[%clk 0:00:09.1]} 43. Ra4
{[%clk 0:00:17]} 43... Kd5 {[%clk 0:00:07.3]} 44. c3 {[%clk 0:00:15.9]} 44...
Re1 {[%clk 0:00:06]} 45. b4 {[%clk 0:00:13.6]} 45... d3 {[%clk 0:00:04.1]} 46.
bxa5 {[%clk 0:00:11.2]} 46... d2 {[%clk 0:00:04]} 47. a6 {[%clk 0:00:06.2]}
47... d1=Q+ {[%clk 0:00:04]} 48. Kf2 {[%clk 0:00:06.7]} 48... Re2+ {[%clk
0:00:03.7]} 49. Kg3 {[%clk 0:00:06.5]} 49... Qxa4 {[%clk 0:00:03.2]} 50. Kh4
{[%clk 0:00:06.7]} 50... Qxa6 {[%clk 0:00:03.4]} 51. c4+ {[%clk 0:00:06.4]}
51... Qxc4 {[%clk 0:00:03.6]} 52. b3 {[%clk 0:00:06.6]} 52... Qd3 {[%clk
0:00:03.4]} 53. b4 {[%clk 0:00:06.8]} 53... Rh2# {[%clk 0:00:03.7]} 0-1

[Event "*** Titled Tuesday Blitz"]
[Site "Chess.com"]
[Date "2020.05.05"]
[Round "3"]
[White "ChesterF"]
[Black "51616516516"]
[Result "1/2-1/2"]
[WhiteElo "2517"]
[BlackElo "2300"]
[TimeControl "180+1"]
[EndTime "10:30:18 PDT"]
[Termination "Game drawn - insufficient material"]

1. d4 {[%clk 0:03:00.9]} 1... Nf6 {[%clk 0:02:59.1]} 2. c4 {[%clk 0:03:00.2]}
2... g6 {[%clk 0:02:57.7]} 3. Nc3 {[%clk 0:02:59.9]} 3... Bg7 {[%clk 0:02:57.7]}
4. e4 {[%clk 0:02:59.9]} 4... d6 {[%clk 0:02:58]} 5. Nf3 {[%clk 0:02:59.9]} 5...
O-O {[%clk 0:02:56.2]} 6. Be2 {[%clk 0:03:00.4]} 6... e5 {[%clk 0:02:53.7]} 7.
O-O {[%clk 0:03:00.9]} 7... Nc6 {[%clk 0:02:47.9]} 8. d5 {[%clk 0:03:00.8]} 8...
Ne7 {[%clk 0:02:47.5]} 9. Ne1 {[%clk 0:03:01]} 9... Nd7 {[%clk 0:02:41.4]} 10.
Nd3 {[%clk 0:02:58.5]} 10... f5 {[%clk 0:02:38.8]} 11. f3 {[%clk 0:02:58.3]}
11... a5 {[%clk 0:02:33.6]} 12. Bd2 {[%clk 0:02:57.7]} 12... f4 {[%clk
0:02:30.8]} 13. Rc1 {[%clk 0:02:57]} 13... b6 {[%clk 0:02:27.9]} 14. a3 {[%clk
0:02:55.8]} 14... g5 {[%clk 0:02:26.6]} 15. b4 {[%clk 0:02:53.1]} 15... axb4
{[%clk 0:02:19.8]} 16. axb4 {[%clk 0:02:54]} 16... h5 {[%clk 0:02:00.5]} 17. Kh1
{[%clk 0:02:50.2]} 17... Nf6 {[%clk 0:01:58.4]} 18. c5 {[%clk 0:02:48.9]} 18...
g4 {[%clk 0:01:51.5]} 19. cxd6 {[%clk 0:02:45.8]} 19... cxd6 {[%clk 0:01:51]}
20. Nb5 {[%clk 0:02:39.3]} 20... g3 {[%clk 0:01:39.5]} 21. Nc7 {[%clk
0:02:36.2]} 21... Ra7 {[%clk 0:01:34.6]} 22. Ne6 {[%clk 0:02:35.7]} 22... Bxe6
{[%clk 0:01:34.4]} 23. dxe6 {[%clk 0:02:36.6]} 23... gxh2 {[%clk 0:01:26.4]} 24.
Qb3 {[%clk 0:02:31.1]} 24... h4 {[%clk 0:01:24.2]} 25. Be1 {[%clk 0:02:30]}
25... Qe8 {[%clk 0:01:09.6]} 26. Bxh4 {[%clk 0:02:23.1]} 26... Qh5 {[%clk
0:01:07.8]} 27. Bf2 {[%clk 0:02:21.8]} 27... Nxe4 {[%clk 0:00:57.5]} 28. fxe4
{[%clk 0:02:10]} 28... Qxe2 {[%clk 0:00:56.7]} 29. Rce1 {[%clk 0:02:03.7]} 29...
Qg4 {[%clk 0:00:51.3]} 30. Bxb6 {[%clk 0:01:59.8]} 30... Rb7 {[%clk 0:00:49.6]}
31. Bf2 {[%clk 0:01:41.2]} 31... f3 {[%clk 0:00:49.2]} 32. g3 {[%clk 0:01:37.8]}
32... Qh3 {[%clk 0:00:47.4]} 33. Nf4 {[%clk 0:01:19.3]} 33... exf4 {[%clk
0:00:45.1]} 34. Qxf3 {[%clk 0:01:19]} 34... fxg3 {[%clk 0:00:34.4]} 35. Qxg3
{[%clk 0:01:19.1]} 35... Qxg3 {[%clk 0:00:23.2]} 36. Bxg3 {[%clk 0:01:20]} 36...
Rxf1+ {[%clk 0:00:17.6]} 37. Rxf1 {[%clk 0:01:18.6]} 37... Be5 {[%clk
0:00:14.2]} 38. Bxe5 {[%clk 0:00:31]} 38... dxe5 {[%clk 0:00:15.1]} 39. Rb1
{[%clk 0:00:30.3]} 39... Nc6 {[%clk 0:00:12.8]} 40. b5 {[%clk 0:00:30.1]} 40...
Nd4 {[%clk 0:00:12.9]} 41. b6 {[%clk 0:00:27.1]} 41... Kf8 {[%clk 0:00:12.9]}
42. Kxh2 {[%clk 0:00:26.9]} 42... Ke7 {[%clk 0:00:12.9]} 43. Kg3 {[%clk
0:00:25.7]} 43... Kxe6 {[%clk 0:00:13.2]} 44. Kg4 {[%clk 0:00:25.9]} 44... Ne2
{[%clk 0:00:05.1]} 45. Rh1 {[%clk 0:00:23.8]} 45... Kd6 {[%clk 0:00:02.7]} 46.
Rh6+ {[%clk 0:00:23]} 46... Kc5 {[%clk 0:00:02.7]} 47. Kf5 {[%clk 0:00:21.6]}
47... Nd4+ {[%clk 0:00:01.4]} 48. Kxe5 {[%clk 0:00:20.1]} 48... Nc6+ {[%clk
0:00:01.7]} 49. Kf4 {[%clk 0:00:18.2]} 49... Rxb6 {[%clk 0:00:02.1]} 50. e5
{[%clk 0:00:18.3]} 50... Nxe5 {[%clk 0:00:02.2]} 51. Rh5 {[%clk 0:00:15.7]}
51... Kd6 {[%clk 0:00:01.7]} 52. Rxe5 {[%clk 0:00:14]} 52... Rb4+ {[%clk
0:00:01.1]} 53. Re4 {[%clk 0:00:14.4]} 53... Rxe4+ {[%clk 0:00:01.5]} 54. Kxe4
{[%clk 0:00:15.3]} 1/2-1/2

[Event "*** Titled Tuesday Blitz"]
[Site "Chess.com"]
[Date "2020.05.05"]
[Round "3"]
[White "IMRosen"]
[Black "WastefulJustice"]
[Result "1-0"]
[WhiteElo "2567"]
[BlackElo "2359"]
[TimeControl "180+1"]
[EndTime "10:30:19 PDT"]
[Termination "IMRosen won by checkmate"]

1. d4 {[%clk 0:03:00.9]} 1... Nf6 {[%clk 0:03:00]} 2. Bf4 {[%clk 0:03:01]} 2...
g6 {[%clk 0:03:00.4]} 3. Nc3 {[%clk 0:03:01.3]} 3... d5 {[%clk 0:02:58.4]} 4. e3
{[%clk 0:02:59.9]} 4... Bg7 {[%clk 0:02:58.3]} 5. h4 {[%clk 0:03:00.4]} 5... O-O
{[%clk 0:02:56.5]} 6. h5 {[%clk 0:03:00.5]} 6... c5 {[%clk 0:02:52.2]} 7. hxg6
{[%clk 0:03:00.4]} 7... fxg6 {[%clk 0:02:51.8]} 8. Nf3 {[%clk 0:02:54.6]} 8...
Nc6 {[%clk 0:02:50.9]} 9. Qd2 {[%clk 0:02:48.6]} 9... Bf5 {[%clk 0:02:48.8]} 10.
dxc5 {[%clk 0:02:38.7]} 10... Qa5 {[%clk 0:02:23.6]} 11. Nd4 {[%clk 0:02:22.7]}
11... e5 {[%clk 0:02:07.5]} 12. Nxc6 {[%clk 0:02:05.1]} 12... bxc6 {[%clk
0:02:08.4]} 13. Bxe5 {[%clk 0:02:05.4]} 13... Qxc5 {[%clk 0:02:00.6]} 14. Bd3
{[%clk 0:01:40]} 14... Ng4 {[%clk 0:01:03.7]} 15. Bxg7 {[%clk 0:01:03.3]} 15...
Kxg7 {[%clk 0:01:04.6]} 16. Rf1 {[%clk 0:00:54.9]} 16... Nh2 {[%clk 0:00:57.6]}
17. Rh1 {[%clk 0:00:48.7]} 17... Ng4 {[%clk 0:00:57.8]} 18. Be2 {[%clk
0:00:24.1]} 18... Rab8 {[%clk 0:00:42.7]} 19. Bxg4 {[%clk 0:00:17.7]} 19... Bxg4
{[%clk 0:00:42.1]} 20. b3 {[%clk 0:00:18.4]} 20... Rb4 {[%clk 0:00:36]} 21. Ne2
{[%clk 0:00:15.7]} 21... Bxe2 {[%clk 0:00:21.9]} 22. Qxe2 {[%clk 0:00:14.1]}
22... d4 {[%clk 0:00:22.3]} 23. Rd1 {[%clk 0:00:10.8]} 23... Rf7 {[%clk
0:00:12.6]} 24. e4 {[%clk 0:00:09.7]} 24... Re7 {[%clk 0:00:08.9]} 25. f3 {[%clk
0:00:10.2]} 25... a5 {[%clk 0:00:06.9]} 26. Qd2 {[%clk 0:00:10.8]} 26... a4
{[%clk 0:00:05.7]} 27. Qh6+ {[%clk 0:00:11.2]} 27... Kg8 {[%clk 0:00:04.9]} 28.
Rd2 {[%clk 0:00:11.5]} 28... a3 {[%clk 0:00:04.5]} 29. Qh4 {[%clk 0:00:10.3]}
29... Rbb7 {[%clk 0:00:04.1]} 30. Qf2 {[%clk 0:00:08]} 30... Rbd7 {[%clk
0:00:03.3]} 31. Rd3 {[%clk 0:00:07.5]} 31... Qb4+ {[%clk 0:00:03.1]} 32. Qd2
{[%clk 0:00:08]} 32... Qb6 {[%clk 0:00:02.6]} 33. g4 {[%clk 0:00:05.7]} 33... c5
{[%clk 0:00:02.8]} 34. Kf2 {[%clk 0:00:05.3]} 34... Qf6 {[%clk 0:00:03.2]} 35.
g5 {[%clk 0:00:04.9]} 35... Qf7 {[%clk 0:00:03.2]} 36. Rh4 {[%clk 0:00:05.2]}
36... Re6 {[%clk 0:00:03]} 37. Qf4 {[%clk 0:00:05]} 37... Qg7 {[%clk 0:00:03]}
38. Kg3 {[%clk 0:00:05]} 38... Rf7 {[%clk 0:00:02.7]} 39. Qg4 {[%clk 0:00:05]}
39... Re8 {[%clk 0:00:02.4]} 40. Rd2 {[%clk 0:00:04.9]} 40... Qe5+ {[%clk
0:00:02.8]} 41. Kg2 {[%clk 0:00:04.8]} 41... Ref8 {[%clk 0:00:03.4]} 42. Rf2
{[%clk 0:00:05]} 42... Qe7 {[%clk 0:00:03.5]} 43. Qh3 {[%clk 0:00:04.2]} 43...
Qe5 {[%clk 0:00:03.6]} 44. Qg3 {[%clk 0:00:04.8]} 44... Qe7 {[%clk 0:00:03.7]}
45. Rg4 {[%clk 0:00:05]} 45... Qe6 {[%clk 0:00:03.6]} 46. Rh4 {[%clk 0:00:05.1]}
46... Qe7 {[%clk 0:00:03.8]} 47. Rh1 {[%clk 0:00:05.9]} 47... Qe6 {[%clk
0:00:04.2]} 48. Re1 {[%clk 0:00:06.5]} 48... Rf4 {[%clk 0:00:04.5]} 49. Rh1
{[%clk 0:00:04.7]} 49... Qe5 {[%clk 0:00:04.9]} 50. Qh2 {[%clk 0:00:04.6]} 50...
Qxg5+ {[%clk 0:00:04.1]} 51. Kf1 {[%clk 0:00:04.2]} 51... Rxf3 {[%clk
0:00:03.7]} 52. Qxh7# {[%clk 0:00:04.3]} 1-0

[Event "*** Titled Tuesday Blitz"]
[Site "Chess.com"]
[Date "2020.05.05"]
[Round "3"]
[White "Poghosyan_Suren"]
[Black "konradrutkowski"]
[Result "1-0"]
[WhiteElo "2481"]
[BlackElo "2181"]
[TimeControl "180+1"]
[EndTime "10:30:19 PDT"]
[Termination "Poghosyan_Suren won by resignation"]

1. Nf3 {[%clk 0:03:00.9]} 1... Nf6 {[%clk 0:02:58.6]} 2. c4 {[%clk 0:03:00.3]}
2... g6 {[%clk 0:02:57.6]} 3. b3 {[%clk 0:02:59.8]} 3... Bg7 {[%clk 0:02:57.9]}
4. Bb2 {[%clk 0:03:00.7]} 4... O-O {[%clk 0:02:58.3]} 5. g3 {[%clk 0:03:00.9]}
5... d6 {[%clk 0:02:57.2]} 6. Bg2 {[%clk 0:03:00.7]} 6... c5 {[%clk 0:02:57.6]}
7. O-O {[%clk 0:03:00.9]} 7... Nc6 {[%clk 0:02:57.5]} 8. d4 {[%clk 0:03:01.1]}
8... d5 {[%clk 0:02:55.4]} 9. dxc5 {[%clk 0:02:47.8]} 9... dxc4 {[%clk 0:02:50]}
10. Qc1 {[%clk 0:02:46.2]} 10... cxb3 {[%clk 0:02:45.8]} 11. axb3 {[%clk
0:02:47.1]} 11... Be6 {[%clk 0:02:43.5]} 12. Nbd2 {[%clk 0:02:46.5]} 12... h6
{[%clk 0:02:39.9]} 13. Nc4 {[%clk 0:02:24.9]} 13... Qc8 {[%clk 0:02:32.8]} 14.
Nfd2 {[%clk 0:01:58.4]} 14... Rd8 {[%clk 0:02:18.5]} 15. Bc3 {[%clk 0:01:57.6]}
15... Rb8 {[%clk 0:01:45.4]} 16. b4 {[%clk 0:01:55]} 16... Bh3 {[%clk
0:01:31.7]} 17. Qb2 {[%clk 0:01:35.3]} 17... Bxg2 {[%clk 0:01:27.6]} 18. Kxg2
{[%clk 0:01:36.2]} 18... a6 {[%clk 0:01:22.2]} 19. e4 {[%clk 0:01:30.6]} 19...
Qe6 {[%clk 0:01:19.1]} 20. Rfe1 {[%clk 0:01:28.8]} 20... Rd3 {[%clk 0:01:10.8]}
21. Nb6 {[%clk 0:00:34.6]} 21... Rbd8 {[%clk 0:01:01.9]} 22. Rad1 {[%clk
0:00:33.3]} 22... h5 {[%clk 0:00:49.6]} 23. Qc2 {[%clk 0:00:32.5]} 23... h4
{[%clk 0:00:48.6]} 24. Bxf6 {[%clk 0:00:27.2]} 24... h3+ {[%clk 0:00:47]} 25.
Kf1 {[%clk 0:00:26.1]} 25... Bxf6 {[%clk 0:00:42.1]} 26. Nd5 {[%clk 0:00:26.7]}
26... R3xd5 {[%clk 0:00:25.4]} 27. exd5 {[%clk 0:00:27.6]} 27... Qxd5 {[%clk
0:00:24.3]} 28. Ne4 {[%clk 0:00:27.7]} 28... Nd4 {[%clk 0:00:22.7]} 29. Qd3
{[%clk 0:00:19.9]} 29... Bg7 {[%clk 0:00:18.3]} 30. g4 {[%clk 0:00:20.1]} 30...
f5 {[%clk 0:00:17.2]} 31. gxf5 {[%clk 0:00:21]} 31... gxf5 {[%clk 0:00:17.4]}
32. Qxh3 {[%clk 0:00:16.1]} 32... fxe4 {[%clk 0:00:16.3]} 33. Kg2 {[%clk
0:00:13.5]} 33... e3+ {[%clk 0:00:14.1]} 34. f3 {[%clk 0:00:13.5]} 34... e2
{[%clk 0:00:11.5]} 35. Rxe2 {[%clk 0:00:13.2]} 35... Qb3 {[%clk 0:00:10]} 36.
Red2 {[%clk 0:00:12.1]} 36... Rf8 {[%clk 0:00:08.7]} 37. Rd3 {[%clk 0:00:10.3]}
37... Qc2+ {[%clk 0:00:07.7]} 38. R1d2 {[%clk 0:00:10.5]} 38... Qb1 {[%clk
0:00:08]} 39. Qg3 {[%clk 0:00:06.8]} 39... Qa1 {[%clk 0:00:07.6]} 40. Qf2 {[%clk
0:00:06.3]} 40... Rf5 {[%clk 0:00:05.2]} 41. Rd1 {[%clk 0:00:06.1]} 41... Rg5+
{[%clk 0:00:05.2]} 42. Kh3 {[%clk 0:00:04.8]} 42... Qa4 {[%clk 0:00:06.1]} 43.
Rxd4 {[%clk 0:00:04.3]} 43... Bxd4 {[%clk 0:00:05.5]} 44. Rxd4 {[%clk
0:00:05.2]} 44... Qe8 {[%clk 0:00:06]} 45. Rg4 {[%clk 0:00:06.1]} 45... Qh5+
{[%clk 0:00:05.8]} 46. Qh4 {[%clk 0:00:06.3]} 46... Qxh4+ {[%clk 0:00:06.5]} 47.
Kxh4 {[%clk 0:00:06.6]} 47... Rxg4+ {[%clk 0:00:07.4]} 48. Kxg4 {[%clk
0:00:06.7]} 48... Kf7 {[%clk 0:00:07.8]} 49. Kf5 {[%clk 0:00:07.4]} 49... e6+
{[%clk 0:00:08]} 50. Ke5 {[%clk 0:00:08.3]} 50... Ke7 {[%clk 0:00:08.9]} 51. f4
{[%clk 0:00:08.7]} 1-0

[Event "*** Titled Tuesday Blitz"]
[Site "Chess.com"]
[Date "2020.05.05"]
[Round "3"]
[White "LizaSolovyova"]
[Black "Sashadav97"]
[Result "1-0"]
[WhiteElo "2561"]
[BlackElo "2751"]
[TimeControl "180+1"]
[EndTime "10:30:22 PDT"]
[Termination "LizaSolovyova won by resignation"]

1. e4 {[%clk 0:03:00.8]} 1... c5 {[%clk 0:02:59.5]} 2. d3 {[%clk 0:02:58]} 2...
Nc6 {[%clk 0:02:50.5]} 3. c3 {[%clk 0:02:57.3]} 3... e6 {[%clk 0:02:46]} 4. Qc2
{[%clk 0:02:56.6]} 4... d5 {[%clk 0:02:46]} 5. h3 {[%clk 0:02:54.8]} 5... Nf6
{[%clk 0:02:40.7]} 6. Nf3 {[%clk 0:02:54.8]} 6... b6 {[%clk 0:02:39.3]} 7. Bg5
{[%clk 0:02:50.5]} 7... Be7 {[%clk 0:02:39.2]} 8. Nbd2 {[%clk 0:02:49.9]} 8...
Bb7 {[%clk 0:02:38.9]} 9. Be2 {[%clk 0:02:49]} 9... O-O {[%clk 0:02:38.2]} 10.
O-O {[%clk 0:02:46.2]} 10... h6 {[%clk 0:02:38.5]} 11. Bf4 {[%clk 0:02:40.1]}
11... d4 {[%clk 0:02:20]} 12. c4 {[%clk 0:02:28.3]} 12... Nd7 {[%clk 0:02:11.5]}
13. a3 {[%clk 0:02:26.7]} 13... f5 {[%clk 0:02:10.3]} 14. Bh2 {[%clk 0:02:25.8]}
14... f4 {[%clk 0:02:08.1]} 15. Kh1 {[%clk 0:02:17.2]} 15... e5 {[%clk
0:02:08.3]} 16. Rg1 {[%clk 0:02:13.5]} 16... g5 {[%clk 0:02:01]} 17. g3 {[%clk
0:02:11.9]} 17... Kh7 {[%clk 0:01:58.2]} 18. Rg2 {[%clk 0:02:07.5]} 18... Rg8
{[%clk 0:01:50.4]} 19. Rag1 {[%clk 0:02:05.3]} 19... Qc7 {[%clk 0:01:50.5]} 20.
Qd1 {[%clk 0:02:00.1]} 20... Bf6 {[%clk 0:01:48.6]} 21. gxf4 {[%clk 0:01:57.2]}
21... gxf4 {[%clk 0:01:44.5]} 22. Rxg8 {[%clk 0:01:56.1]} 22... Rxg8 {[%clk
0:01:43.9]} 23. Rxg8 {[%clk 0:01:57]} 23... Kxg8 {[%clk 0:01:44.8]} 24. Qg1+
{[%clk 0:01:57.5]} 24... Kh7 {[%clk 0:01:31.9]} 25. Qg4 {[%clk 0:01:55.3]} 25...
Nf8 {[%clk 0:01:30.8]} 26. Nh4 {[%clk 0:01:53.4]} 26... Bc8 {[%clk 0:01:05.9]}
27. Nf5 {[%clk 0:01:46.4]} 27... Qf7 {[%clk 0:00:49.9]} 28. Qh5 {[%clk
0:01:45.2]} 28... Qxh5 {[%clk 0:00:49.7]} 29. Bxh5 {[%clk 0:01:46.1]} 29... Ne7
{[%clk 0:00:48.4]} 30. Nxe7 {[%clk 0:01:41.9]} 30... Bxe7 {[%clk 0:00:49.3]} 31.
Kg2 {[%clk 0:01:34.9]} 31... Bf6 {[%clk 0:00:47.9]} 32. Bg4 {[%clk 0:01:31.3]}
32... Bxg4 {[%clk 0:00:43.7]} 33. hxg4 {[%clk 0:01:32.2]} 33... a6 {[%clk
0:00:43.4]} 34. Bg1 {[%clk 0:01:28]} 34... Kg6 {[%clk 0:00:43.6]} 35. f3 {[%clk
0:01:28.1]} 35... h5 {[%clk 0:00:44.1]} 36. gxh5+ {[%clk 0:01:19.9]} 36... Kxh5
{[%clk 0:00:45]} 37. Bf2 {[%clk 0:01:19.1]} 37... Be7 {[%clk 0:00:38.8]} 38. Nf1
{[%clk 0:01:15.5]} 38... Nd7 {[%clk 0:00:17.3]} 39. Nh2 {[%clk 0:01:15.2]} 39...
Kg6 {[%clk 0:00:17.6]} 40. Ng4 {[%clk 0:01:15]} 40... b5 {[%clk 0:00:18.1]} 41.
b3 {[%clk 0:01:14]} 41... Kf7 {[%clk 0:00:17.4]} 42. Be1 {[%clk 0:01:12.3]}
42... bxc4 {[%clk 0:00:17]} 43. bxc4 {[%clk 0:01:10]} 43... Nb6 {[%clk
0:00:17.1]} 44. Nxe5+ {[%clk 0:01:09.6]} 44... Ke6 {[%clk 0:00:17.1]} 45. Ng6
{[%clk 0:01:01.9]} 45... Bg5 {[%clk 0:00:17]} 46. Bd2 {[%clk 0:01:00.4]} 46...
Na4 {[%clk 0:00:16.8]} 47. Bxf4 {[%clk 0:00:54.7]} 47... Kf6 {[%clk 0:00:04.4]}
48. Bxg5+ {[%clk 0:00:53.1]} 48... Kxg5 {[%clk 0:00:05.3]} 49. Ne5 {[%clk
0:00:52.4]} 49... Kf4 {[%clk 0:00:05.3]} 50. Nd7 {[%clk 0:00:52.1]} 50... Ke3
{[%clk 0:00:02.1]} 51. e5 {[%clk 0:00:51.3]} 51... Kxd3 {[%clk 0:00:03]} 52. e6
{[%clk 0:00:51.5]} 52... Kc2 {[%clk 0:00:03.9]} 53. e7 {[%clk 0:00:51.7]} 53...
d3 {[%clk 0:00:04.8]} 54. e8=Q {[%clk 0:00:50]} 54... d2 {[%clk 0:00:05.7]} 55.
Qe4+ {[%clk 0:00:45.7]} 55... Kc1 {[%clk 0:00:05.9]} 56. Qe3 {[%clk 0:00:44.8]}
56... Kc2 {[%clk 0:00:05.3]} 57. Nxc5 {[%clk 0:00:38.1]} 57... d1=Q {[%clk
0:00:02.5]} 58. Qb3+ {[%clk 0:00:36.7]} 58... Kc1 {[%clk 0:00:02.5]} 59. Qxd1+
{[%clk 0:00:37.2]} 59... Kxd1 {[%clk 0:00:03.1]} 60. Nxa4 {[%clk 0:00:38.1]} 1-0